[Event "*** Titled Tuesday Blitz"]
[Site "Chess.com"]
[Date "2018.04.03"]
[Round "7"]
[White "toad"]
[Black "GMSrinath"]
[Result "0-1"]
[WhiteElo "2252"]
[BlackElo "2712"]
[TimeControl "180+2"]
[EndTime "14:30:35 PDT"]
[Termination "GMSrinath won by resignation"]

1. d4 {[%clk 0:03:01.9]} 1... Nf6 {[%clk 0:02:59.9]} 2. c4 {[%clk 0:03:03.3]}
2... c5 {[%clk 0:03:01.2]} 3. d5 {[%clk 0:03:04.1]} 3... g6 {[%clk 0:03:02]} 4.
g3 {[%clk 0:03:04.8]} 4... Bg7 {[%clk 0:03:03.3]} 5. Nc3 {[%clk 0:03:04]} 5...
O-O {[%clk 0:03:05.2]} 6. Bg2 {[%clk 0:03:05.5]} 6... e6 {[%clk 0:03:07.1]} 7.
Nf3 {[%clk 0:03:05.3]} 7... exd5 {[%clk 0:03:08.6]} 8. cxd5 {[%clk 0:03:07]}
8... d6 {[%clk 0:03:10.5]} 9. O-O {[%clk 0:03:08.1]} 9... Re8 {[%clk 0:03:12.4]}
10. Re1 {[%clk 0:03:09.4]} 10... Ne4 {[%clk 0:03:09.6]} 11. Nxe4 {[%clk
0:03:10.6]} 11... Rxe4 {[%clk 0:03:11.5]} 12. Qc2 {[%clk 0:03:12.2]} 12... Re8
{[%clk 0:03:03]} 13. e4 {[%clk 0:03:10.9]} 13... b5 {[%clk 0:03:04.4]} 14. a4
{[%clk 0:03:11.2]} 14... b4 {[%clk 0:03:05.2]} 15. Nd2 {[%clk 0:03:07.6]} 15...
Nd7 {[%clk 0:03:05.5]} 16. Nc4 {[%clk 0:03:07.8]} 16... Ne5 {[%clk 0:03:05.5]}
17. Nxe5 {[%clk 0:02:44.8]} 17... Bxe5 {[%clk 0:03:07.4]} 18. f4 {[%clk
0:02:46.4]} 18... Bg7 {[%clk 0:03:06.6]} 19. h3 {[%clk 0:02:39.6]} 19... a5
{[%clk 0:03:07]} 20. Bf1 {[%clk 0:02:30.9]} 20... Bb7 {[%clk 0:03:06.3]} 21. Kh2
{[%clk 0:02:30.5]} 21... Bxd5 {[%clk 0:03:06.7]} 22. Bd2 {[%clk 0:02:12.2]}
22... Bc6 {[%clk 0:03:06.1]} 23. Bc4 {[%clk 0:02:13]} 23... Qd7 {[%clk 0:03:01]}
24. b3 {[%clk 0:02:10.8]} 24... Bxa1 {[%clk 0:03:00.1]} 25. Rxa1 {[%clk
0:02:12]} 25... Bxe4 {[%clk 0:03:01.2]} 26. Qb2 {[%clk 0:02:06.5]} 26... d5
{[%clk 0:03:01.1]} 27. Bb5 {[%clk 0:02:04.5]} 27... Qf5 {[%clk 0:03:01.5]} 28.
Bxe8 {[%clk 0:02:04]} 28... Rxe8 {[%clk 0:03:03.4]} 29. Re1 {[%clk 0:02:04.3]}
29... d4 {[%clk 0:03:03.8]} 30. Qc1 {[%clk 0:01:58.2]} 30... Bc6 {[%clk
0:03:04]} 31. Rxe8+ {[%clk 0:01:55.2]} 31... Bxe8 {[%clk 0:03:05.9]} 32. Qc4
{[%clk 0:01:45.7]} 32... Bc6 {[%clk 0:03:04.6]} 33. Qe2 {[%clk 0:01:24.2]} 33...
Qd5 {[%clk 0:03:01.9]} 34. g4 {[%clk 0:01:24]} 34... Qxb3 {[%clk 0:02:59.1]} 35.
f5 {[%clk 0:01:21.9]} 35... Qc2 {[%clk 0:02:50.2]} 36. Kg3 {[%clk 0:01:06.8]}
36... Qe4 {[%clk 0:02:39.3]} 37. Qxe4 {[%clk 0:00:44.7]} 37... Bxe4 {[%clk
0:02:40.9]} 38. Kf4 {[%clk 0:00:46.3]} 38... b3 {[%clk 0:02:29.7]} 39. Bc1
{[%clk 0:00:47.5]} 39... c4 {[%clk 0:02:29.6]} 40. Kxe4 {[%clk 0:00:45.7]} 40...
c3 {[%clk 0:02:30.2]} 41. Kxd4 {[%clk 0:00:13.1]} 41... b2 {[%clk 0:02:22.1]}
42. Kxc3 {[%clk 0:00:11.4]} 42... bxc1=Q+ {[%clk 0:02:22.5]} 0-1

[Event "*** Titled Tuesday Blitz"]
[Site "Chess.com"]
[Date "2018.04.03"]
[Round "7"]
[White "KRASAVCHIK2002"]
[Black "DrZeiss"]
[Result "1-0"]
[WhiteElo "1982"]
[BlackElo "2210"]
[TimeControl "180+2"]
[EndTime "14:30:37 PDT"]
[Termination "KRASAVCHIK2002 won by checkmate"]

1. d4 {[%clk 0:02:59.2]} 1... Nf6 {[%clk 0:02:59.5]} 2. Nf3 {[%clk 0:02:56.8]}
2... c5 {[%clk 0:02:59.5]} 3. c3 {[%clk 0:02:57.4]} 3... g6 {[%clk 0:02:59.6]}
4. Bg5 {[%clk 0:02:57.8]} 4... Bg7 {[%clk 0:02:59.9]} 5. Bxf6 {[%clk 0:02:58.8]}
5... Bxf6 {[%clk 0:03:00.2]} 6. e3 {[%clk 0:03:00.4]} 6... O-O {[%clk
0:02:56.8]} 7. Bd3 {[%clk 0:03:00.9]} 7... d6 {[%clk 0:02:56.1]} 8. Nbd2 {[%clk
0:03:01.5]} 8... e5 {[%clk 0:02:51.7]} 9. dxe5 {[%clk 0:03:00]} 9... dxe5 {[%clk
0:02:47.8]} 10. Qc2 {[%clk 0:03:00.5]} 10... Nc6 {[%clk 0:02:44.4]} 11. h4
{[%clk 0:02:59.7]} 11... Kg7 {[%clk 0:02:37.1]} 12. h5 {[%clk 0:02:59.2]} 12...
a6 {[%clk 0:02:30.2]} 13. O-O-O {[%clk 0:02:57.9]} 13... Qc7 {[%clk 0:02:12.7]}
14. hxg6 {[%clk 0:02:56.8]} 14... hxg6 {[%clk 0:02:06.5]} 15. Ne4 {[%clk
0:02:57.1]} 15... Be7 {[%clk 0:02:00]} 16. Neg5 {[%clk 0:02:49]} 16... f5 {[%clk
0:01:38.2]} 17. Rh7+ {[%clk 0:02:44.4]} 17... Kf6 {[%clk 0:01:37.3]} 18. Qb3
{[%clk 0:02:25]} 18... Nd8 {[%clk 0:01:27.6]} 19. Be2 {[%clk 0:02:04.7]} 19...
Ne6 {[%clk 0:01:12.1]} 20. Nxe6 {[%clk 0:01:45.9]} 20... Bxe6 {[%clk 0:01:11]}
21. Bc4 {[%clk 0:01:46.8]} 21... Bxc4 {[%clk 0:01:01.2]} 22. Qxc4 {[%clk
0:01:46.6]} 22... b5 {[%clk 0:00:48.7]} 23. Qh4+ {[%clk 0:01:46.3]} 23... Ke6
{[%clk 0:00:48.4]} 24. Qh6 {[%clk 0:01:41.6]} 24... Rg8 {[%clk 0:00:28]} 25. Rg7
{[%clk 0:01:25.8]} 25... Rxg7 {[%clk 0:00:19.8]} 26. Qxg7 {[%clk 0:01:25.9]}
26... Qc6 {[%clk 0:00:14.6]} 27. Qxg6+ {[%clk 0:01:21.9]} 27... Bf6 {[%clk
0:00:14.8]} 28. Ng5+ {[%clk 0:01:22.8]} 28... Ke7 {[%clk 0:00:15.5]} 29. Qf7#
{[%clk 0:01:23.9]} 1-0

[Event "*** Titled Tuesday Blitz"]
[Site "Chess.com"]
[Date "2018.04.03"]
[Round "7"]
[White "florianschwabeneder"]
[Black "PowerThinking2650"]
[Result "1-0"]
[WhiteElo "2369"]
[BlackElo "2225"]
[TimeControl "180+2"]
[EndTime "14:30:42 PDT"]
[Termination "florianschwabeneder won by resignation"]

1. d4 {[%clk 0:03:01.8]} 1... Nf6 {[%clk 0:02:58.9]} 2. Bf4 {[%clk 0:03:02]}
2... g6 {[%clk 0:02:59]} 3. Nc3 {[%clk 0:03:00.8]} 3... d5 {[%clk 0:02:58.1]} 4.
f3 {[%clk 0:03:00.8]} 4... Bg7 {[%clk 0:02:58.6]} 5. e4 {[%clk 0:02:58.9]} 5...
dxe4 {[%clk 0:02:37.2]} 6. fxe4 {[%clk 0:02:59.7]} 6... O-O {[%clk 0:02:33.8]}
7. Qd2 {[%clk 0:03:00.2]} 7... c6 {[%clk 0:02:15.2]} 8. O-O-O {[%clk 0:03:00]}
8... Qa5 {[%clk 0:02:15.5]} 9. Nf3 {[%clk 0:02:53.3]} 9... b5 {[%clk 0:02:07.9]}
10. Bd3 {[%clk 0:02:29.7]} 10... b4 {[%clk 0:01:51.8]} 11. Nb1 {[%clk
0:02:29.6]} 11... Qxa2 {[%clk 0:01:35.4]} 12. Qxb4 {[%clk 0:02:29.6]} 12... a5
{[%clk 0:01:20.5]} 13. Qxe7 {[%clk 0:02:27.1]} 13... Na6 {[%clk 0:01:12.3]} 14.
Qa3 {[%clk 0:02:23.1]} 14... Qe6 {[%clk 0:01:08.5]} 15. Rhe1 {[%clk 0:02:10.6]}
15... Nb4 {[%clk 0:01:08.5]} 16. h3 {[%clk 0:02:05.2]} 16... Nxd3+ {[%clk
0:01:06.1]} 17. Qxd3 {[%clk 0:01:59.3]} 17... Ba6 {[%clk 0:01:05]} 18. Qa3
{[%clk 0:01:53.5]} 18... Nxe4 {[%clk 0:00:42.7]} 19. Ng5 {[%clk 0:01:53.6]}
19... Nxg5 {[%clk 0:00:43.8]} 20. Rxe6 {[%clk 0:01:51.6]} 20... Nxe6 {[%clk
0:00:45.1]} 21. Be3 {[%clk 0:01:44]} 21... Rfb8 {[%clk 0:00:38.8]} 22. c3 {[%clk
0:01:43]} 22... Bc4 {[%clk 0:00:36.7]} 23. Qd6 {[%clk 0:01:39.4]} 23... Bd5
{[%clk 0:00:33.9]} 24. Nd2 {[%clk 0:01:37.8]} 24... Bxg2 {[%clk 0:00:30]} 25.
Qg3 {[%clk 0:01:37]} 25... Bd5 {[%clk 0:00:17.9]} 26. c4 {[%clk 0:01:38]} 26...
Nxd4 {[%clk 0:00:12.5]} 27. Bxd4 {[%clk 0:01:32.3]} 27... Bxd4 {[%clk
0:00:13.2]} 28. cxd5 {[%clk 0:01:33.3]} 28... Bxb2+ {[%clk 0:00:11.8]} 29. Kc2
{[%clk 0:01:33.3]} 29... cxd5 {[%clk 0:00:09.5]} 30. Rb1 {[%clk 0:01:32.8]}
30... Rc8+ {[%clk 0:00:07.2]} 31. Kxb2 {[%clk 0:01:29.9]} 31... Rab8+ {[%clk
0:00:08.4]} 32. Ka1 {[%clk 0:01:30.7]} 1-0

[Event "*** Titled Tuesday Blitz"]
[Site "Chess.com"]
[Date "2018.04.03"]
[Round "7"]
[White "schoolmeester"]
[Black "gkchesstiger"]
[Result "0-1"]
[WhiteElo "2694"]
[BlackElo "2779"]
[TimeControl "180+2"]
[EndTime "14:30:51 PDT"]
[Termination "gkchesstiger won by resignation"]

1. e4 {[%clk 0:03:01.9]} 1... c5 {[%clk 0:02:58.1]} 2. Nf3 {[%clk 0:03:01.2]}
2... e6 {[%clk 0:02:59.4]} 3. d4 {[%clk 0:03:01.8]} 3... cxd4 {[%clk 0:03:00.7]}
4. Nxd4 {[%clk 0:03:02.9]} 4... a6 {[%clk 0:03:02.1]} 5. c4 {[%clk 0:03:02.4]}
5... Nf6 {[%clk 0:02:52.1]} 6. Nc3 {[%clk 0:03:02.5]} 6... Qc7 {[%clk
0:02:52.7]} 7. Bd3 {[%clk 0:02:40.5]} 7... Nc6 {[%clk 0:02:45.6]} 8. Be3 {[%clk
0:02:37.5]} 8... Bd6 {[%clk 0:02:38.8]} 9. g3 {[%clk 0:02:30.5]} 9... b6 {[%clk
0:02:37.7]} 10. Nxc6 {[%clk 0:02:22.1]} 10... Qxc6 {[%clk 0:02:33.1]} 11. f4
{[%clk 0:02:21.3]} 11... Bb7 {[%clk 0:02:32.6]} 12. Qe2 {[%clk 0:02:22]} 12...
Bb4 {[%clk 0:02:30.7]} 13. Bd2 {[%clk 0:01:53.1]} 13... Bxc3 {[%clk 0:02:29.2]}
14. Bxc3 {[%clk 0:01:55]} 14... Nxe4 {[%clk 0:02:30.3]} 15. Bxe4 {[%clk
0:01:56.1]} 15... Qxe4 {[%clk 0:02:30.4]} 16. Qxe4 {[%clk 0:01:57.5]} 16... Bxe4
{[%clk 0:02:31.5]} 17. O-O {[%clk 0:01:58.4]} 17... f6 {[%clk 0:02:31.7]} 18.
Rfd1 {[%clk 0:01:57.6]} 18... d5 {[%clk 0:02:22.5]} 19. cxd5 {[%clk 0:01:57.6]}
19... exd5 {[%clk 0:02:22.6]} 20. Bd4 {[%clk 0:01:58.3]} 20... Rb8 {[%clk
0:02:20.6]} 21. Rac1 {[%clk 0:01:59]} 21... Kd7 {[%clk 0:02:20.8]} 22. Rc3
{[%clk 0:01:59.6]} 22... Rhc8 {[%clk 0:02:21.2]} 23. Rdc1 {[%clk 0:02:00.3]}
23... Rxc3 {[%clk 0:02:20.6]} 24. Rxc3 {[%clk 0:02:01.1]} 24... h5 {[%clk
0:02:20.3]} 25. h3 {[%clk 0:02:01.2]} 25... a5 {[%clk 0:02:19.3]} 26. a3 {[%clk
0:01:54.5]} 26... Bf5 {[%clk 0:02:13.8]} 27. h4 {[%clk 0:01:54.5]} 27... Kd6
{[%clk 0:02:13.5]} 28. Kf2 {[%clk 0:01:55.2]} 28... b5 {[%clk 0:02:12.3]} 29.
Rc1 {[%clk 0:01:42]} 29... Bd3 {[%clk 0:02:10.2]} 30. b4 {[%clk 0:01:42.2]}
30... axb4 {[%clk 0:02:07.8]} 31. axb4 {[%clk 0:01:44.1]} 31... Ra8 {[%clk
0:02:09.1]} 32. Ra1 {[%clk 0:01:44.7]} 32... Ra4 {[%clk 0:02:10.2]} 33. Ke3
{[%clk 0:01:35.1]} 33... Be4 {[%clk 0:02:01.3]} 34. Rxa4 {[%clk 0:01:29.8]}
34... bxa4 {[%clk 0:02:02.5]} 35. b5 {[%clk 0:01:31.3]} 35... a3 {[%clk
0:02:02.3]} 36. Kd2 {[%clk 0:01:29]} 36... a2 {[%clk 0:01:59.5]} 37. Kc1 {[%clk
0:01:29.1]} 37... Bd3 {[%clk 0:01:59.3]} 38. b6 {[%clk 0:01:28.3]} 38... Ba6
{[%clk 0:01:52.5]} 39. Kb2 {[%clk 0:01:29.4]} 39... Ke6 {[%clk 0:01:53.8]} 40.
Kxa2 {[%clk 0:01:29]} 40... Kf5 {[%clk 0:01:55.1]} 41. Bc5 {[%clk 0:01:17.6]}
41... Kg4 {[%clk 0:01:55]} 42. Bf8 {[%clk 0:01:17.2]} 42... f5 {[%clk
0:01:54.1]} 43. Be7 {[%clk 0:01:08.8]} 43... Kxg3 {[%clk 0:01:52.8]} 44. Bg5
{[%clk 0:01:10.2]} 44... d4 {[%clk 0:01:53.1]} 45. Kb3 {[%clk 0:01:02.8]} 45...
Kf3 {[%clk 0:01:54]} 46. Kc2 {[%clk 0:00:39.3]} 46... Ke2 {[%clk 0:01:53.6]} 0-1

[Event "*** Titled Tuesday Blitz"]
[Site "Chess.com"]
[Date "2018.04.03"]
[Round "7"]
[White "Man-Chuk"]
[Black "Kimster98"]
[Result "1-0"]
[WhiteElo "2674"]
[BlackElo "2599"]
[TimeControl "180+2"]
[EndTime "14:30:56 PDT"]
[Termination "Man-Chuk won by resignation"]

1. d4 {[%clk 0:03:01.9]} 1... Nf6 {[%clk 0:02:57.7]} 2. Nf3 {[%clk 0:03:02.8]}
2... d5 {[%clk 0:02:57.8]} 3. Bf4 {[%clk 0:03:03.1]} 3... e6 {[%clk 0:02:58.4]}
4. e3 {[%clk 0:03:03.4]} 4... Bd6 {[%clk 0:02:58.9]} 5. Bg3 {[%clk 0:03:02.3]}
5... O-O {[%clk 0:02:53.1]} 6. c4 {[%clk 0:02:58.8]} 6... dxc4 {[%clk
0:02:36.2]} 7. Bxc4 {[%clk 0:02:57.3]} 7... c5 {[%clk 0:02:35.2]} 8. Nc3 {[%clk
0:02:53.4]} 8... cxd4 {[%clk 0:02:31.5]} 9. Nxd4 {[%clk 0:02:47.5]} 9... Bxg3
{[%clk 0:02:09.1]} 10. hxg3 {[%clk 0:02:49.4]} 10... Qb6 {[%clk 0:02:00.3]} 11.
g4 {[%clk 0:02:33.5]} 11... h6 {[%clk 0:01:57.2]} 12. Bd3 {[%clk 0:02:23.5]}
12... e5 {[%clk 0:01:47.7]} 13. Nf5 {[%clk 0:02:05.3]} 13... Rd8 {[%clk
0:01:17.4]} 14. Ne7+ {[%clk 0:01:54.1]} 14... Kf8 {[%clk 0:01:15.9]} 15. Nxc8
{[%clk 0:01:55]} 15... Rxc8 {[%clk 0:01:13.3]} 16. g5 {[%clk 0:01:47.7]} 16...
Qxb2 {[%clk 0:01:09.4]} 17. gxf6 {[%clk 0:01:30.1]} 17... Qxc3+ {[%clk 0:01:08]}
18. Ke2 {[%clk 0:01:29.2]} 18... Qb2+ {[%clk 0:01:03.3]} 19. Kf1 {[%clk
0:01:16.8]} 19... gxf6 {[%clk 0:00:50.7]} 20. Bf5 {[%clk 0:01:09.5]} 20... Qb5+
{[%clk 0:00:21.1]} 21. Kg1 {[%clk 0:01:06.6]} 21... Re8 {[%clk 0:00:16.7]} 22.
Qd6+ {[%clk 0:01:02.3]} 22... Kg7 {[%clk 0:00:17]} 23. Rxh6 {[%clk 0:01:02.1]}
23... Qc6 {[%clk 0:00:18.4]} 24. Rh7+ {[%clk 0:00:58.1]} 24... Kg8 {[%clk
0:00:19.4]} 25. Qd1 {[%clk 0:00:58.4]} 25... Kf8 {[%clk 0:00:20.8]} 26. Rc1
{[%clk 0:00:55.3]} 26... Qb6 {[%clk 0:00:18.7]} 27. Qh5 {[%clk 0:00:54.9]} 1-0

[Event "*** Titled Tuesday Blitz"]
[Site "Chess.com"]
[Date "2018.04.03"]
[Round "7"]
[White "aa175"]
[Black "DACF2905"]
[Result "0-1"]
[WhiteElo "1937"]
[BlackElo "2055"]
[TimeControl "180+2"]
[EndTime "14:30:56 PDT"]
[Termination "DACF2905 won by checkmate"]

1. e4 {[%clk 0:03:01.9]} 1... c5 {[%clk 0:02:59.8]} 2. b4 {[%clk 0:03:00.7]}
2... cxb4 {[%clk 0:02:59.7]} 3. a3 {[%clk 0:03:00]} 3... Nc6 {[%clk 0:02:59.3]}
4. d4 {[%clk 0:02:58.3]} 4... d5 {[%clk 0:03:00.2]} 5. e5 {[%clk 0:02:55.2]}
5... e6 {[%clk 0:03:00.6]} 6. Nf3 {[%clk 0:02:54.4]} 6... Nh6 {[%clk 0:02:58.4]}
7. Bxh6 {[%clk 0:02:49.8]} 7... gxh6 {[%clk 0:02:58.9]} 8. axb4 {[%clk
0:02:49.3]} 8... Bxb4+ {[%clk 0:02:58.4]} 9. c3 {[%clk 0:02:50.7]} 9... Be7
{[%clk 0:02:59.2]} 10. h4 {[%clk 0:02:45.4]} 10... f6 {[%clk 0:02:54.8]} 11. Qc1
{[%clk 0:02:35.6]} 11... fxe5 {[%clk 0:02:45.1]} 12. Qxh6 {[%clk 0:02:27.6]}
12... exd4 {[%clk 0:02:40.6]} 13. Qh5+ {[%clk 0:02:23]} 13... Kd7 {[%clk
0:02:41.3]} 14. cxd4 {[%clk 0:02:20.1]} 14... Qb6 {[%clk 0:02:41.2]} 15. Nbd2
{[%clk 0:01:31]} 15... Nxd4 {[%clk 0:02:31.9]} 16. Rb1 {[%clk 0:01:12]} 16...
Nxf3+ {[%clk 0:02:29.1]} 17. Qxf3 {[%clk 0:01:07.5]} 17... Qd4 {[%clk
0:02:23.8]} 18. Bb5+ {[%clk 0:01:05.9]} 18... Kd6 {[%clk 0:02:23.9]} 19. Qa3+
{[%clk 0:00:25.4]} 19... Qc5 {[%clk 0:02:22]} 20. Nb3 {[%clk 0:00:06.4]} 20...
Qxa3 {[%clk 0:02:22]} 21. O-O {[%clk 0:00:02.5]} 21... Ke5 {[%clk 0:02:21.2]}
22. Rfe1+ {[%clk 0:00:02.8]} 22... Kf6 {[%clk 0:02:21.9]} 23. Re3 {[%clk
0:00:02.2]} 23... Qa2 {[%clk 0:02:18.2]} 24. Rbe1 {[%clk 0:00:02.3]} 24... a6
{[%clk 0:02:17.7]} 25. Rf3+ {[%clk 0:00:02.3]} 25... Kg7 {[%clk 0:02:18]} 26.
Bf1 {[%clk 0:00:02.9]} 26... Bf6 {[%clk 0:02:16.8]} 27. Nc5 {[%clk 0:00:02.9]}
27... b6 {[%clk 0:02:16.5]} 28. Nxe6+ {[%clk 0:00:02.5]} 28... Bxe6 {[%clk
0:02:17.3]} 29. Rxe6 {[%clk 0:00:04.1]} 29... Rhf8 {[%clk 0:02:18.4]} 30. Rg3+
{[%clk 0:00:04.4]} 30... Kh8 {[%clk 0:02:18.7]} 31. Rxb6 {[%clk 0:00:06.3]}
31... Bxh4 {[%clk 0:02:07.4]} 32. Rf3 {[%clk 0:00:06.5]} 32... Rxf3 {[%clk
0:02:06.1]} 33. gxf3 {[%clk 0:00:08.4]} 33... Qxf2+ {[%clk 0:02:06.2]} 34. Kh1
{[%clk 0:00:10.3]} 34... Qxf1+ {[%clk 0:02:07.1]} 35. Kh2 {[%clk 0:00:12.2]}
35... Qf2+ {[%clk 0:02:08]} 36. Kh1 {[%clk 0:00:14.1]} 36... Qxf3+ {[%clk
0:02:09.2]} 37. Kh2 {[%clk 0:00:13.5]} 37... Bg3+ {[%clk 0:02:08.9]} 38. Kh3
{[%clk 0:00:11.9]} 38... Bc7+ {[%clk 0:02:09.3]} 39. Kh4 {[%clk 0:00:13.8]}
39... Bxb6 {[%clk 0:02:07.6]} 40. Kg5 {[%clk 0:00:06.3]} 40... Rg8+ {[%clk
0:02:07.4]} 41. Kh6 {[%clk 0:00:08.2]} 41... Qh3# {[%clk 0:02:07.3]} 0-1

[Event "*** Titled Tuesday Blitz"]
[Site "Chess.com"]
[Date "2018.04.03"]
[Round "7"]
[White "kikydu96"]
[Black "simplerXiao"]
[Result "0-1"]
[WhiteElo "2362"]
[BlackElo "2429"]
[TimeControl "180+2"]
[EndTime "14:31:02 PDT"]
[Termination "simplerXiao won by resignation"]

1. e4 {[%clk 0:03:01.9]} 1... c5 {[%clk 0:02:59.8]} 2. Nf3 {[%clk 0:03:00.3]}
2... e6 {[%clk 0:03:00.4]} 3. d4 {[%clk 0:03:00.9]} 3... cxd4 {[%clk 0:03:01.9]}
4. Nxd4 {[%clk 0:03:02.8]} 4... Nc6 {[%clk 0:03:03]} 5. Nb5 {[%clk 0:03:03.3]}
5... d6 {[%clk 0:03:03]} 6. Bf4 {[%clk 0:03:04.4]} 6... e5 {[%clk 0:03:03.3]} 7.
Be3 {[%clk 0:03:06]} 7... a6 {[%clk 0:03:03.6]} 8. N5c3 {[%clk 0:03:07]} 8...
Nf6 {[%clk 0:03:04.1]} 9. Na3 {[%clk 0:03:06]} 9... b5 {[%clk 0:03:04.9]} 10.
Nd5 {[%clk 0:03:06.8]} 10... Nxd5 {[%clk 0:03:00.9]} 11. exd5 {[%clk 0:03:08.7]}
11... Ne7 {[%clk 0:03:00.2]} 12. c4 {[%clk 0:03:10.2]} 12... Nf5 {[%clk
0:03:00.4]} 13. Bd2 {[%clk 0:03:09.7]} 13... Be7 {[%clk 0:02:52.7]} 14. cxb5
{[%clk 0:03:08.3]} 14... O-O {[%clk 0:02:53.2]} 15. Be2 {[%clk 0:03:07.3]} 15...
Bb7 {[%clk 0:02:51.6]} 16. Bc3 {[%clk 0:02:57.3]} 16... Nd4 {[%clk 0:02:09.4]}
17. Bxd4 {[%clk 0:02:44.8]} 17... exd4 {[%clk 0:02:11.3]} 18. Qxd4 {[%clk
0:02:46.2]} 18... Bf6 {[%clk 0:02:11.3]} 19. Qd2 {[%clk 0:02:47.2]} 19... Bg5
{[%clk 0:02:04.1]} 20. f4 {[%clk 0:02:33]} 20... Bh4+ {[%clk 0:02:03.6]} 21. g3
{[%clk 0:02:33.5]} 21... Bf6 {[%clk 0:02:03.4]} 22. O-O {[%clk 0:02:29.4]} 22...
Qb6+ {[%clk 0:02:03.4]} 23. Kg2 {[%clk 0:02:29.1]} 23... axb5 {[%clk 0:02:00.8]}
24. Nxb5 {[%clk 0:02:25]} 24... Rfe8 {[%clk 0:01:56.9]} 25. Nc3 {[%clk
0:02:22.1]} 25... Bxc3 {[%clk 0:01:43.2]} 26. bxc3 {[%clk 0:02:22]} 26... Bxd5+
{[%clk 0:01:28.7]} 27. Qxd5 {[%clk 0:02:20.9]} 27... Rxe2+ {[%clk 0:01:28.2]}
28. Kh1 {[%clk 0:02:15.3]} 28... Rae8 {[%clk 0:01:26.2]} 29. a4 {[%clk
0:02:14.1]} 29... Qb2 {[%clk 0:01:24.1]} 30. Qh5 {[%clk 0:02:02.8]} 30... g6
{[%clk 0:01:24.2]} 31. Qh3 {[%clk 0:02:00.8]} 31... Qb7+ {[%clk 0:01:14.7]} 32.
Kg1 {[%clk 0:02:00.7]} 32... Qb6+ {[%clk 0:01:15.5]} 33. Kh1 {[%clk 0:02:02]}
33... Qc6+ {[%clk 0:01:16.7]} 34. Kg1 {[%clk 0:02:03.4]} 34... Qc5+ {[%clk
0:01:17.9]} 35. Kh1 {[%clk 0:02:04.9]} 35... Qd5+ {[%clk 0:01:18.8]} 36. Kg1
{[%clk 0:02:06.3]} 36... Qc5+ {[%clk 0:01:15.2]} 37. Kh1 {[%clk 0:02:07.4]}
37... Qxc3 {[%clk 0:01:16.3]} 38. Qg4 {[%clk 0:02:04.4]} 38... R8e3 {[%clk
0:01:11.9]} 39. Rac1 {[%clk 0:02:01.4]} 39... Qd4 {[%clk 0:01:10.2]} 40. Qc8+
{[%clk 0:01:53]} 40... Kg7 {[%clk 0:01:10.1]} 41. Qb7 {[%clk 0:01:19.8]} 41...
d5 {[%clk 0:01:08.6]} 42. Qb1 {[%clk 0:01:19.8]} 42... Rd3 {[%clk 0:01:06.9]}
43. Qa1 {[%clk 0:01:15.4]} 43... Rb2 {[%clk 0:01:05.8]} 44. Rce1 {[%clk
0:01:16.5]} 44... Rdd2 {[%clk 0:01:04.4]} 0-1

[Event "*** Titled Tuesday Blitz"]
[Site "Chess.com"]
[Date "2018.04.03"]
[Round "7"]
[White "igorkovalenko"]
[Black "GMMatamoros"]
[Result "1-0"]
[WhiteElo "2697"]
[BlackElo "2465"]
[TimeControl "180+2"]
[EndTime "14:31:05 PDT"]
[Termination "igorkovalenko won by resignation"]

1. d4 {[%clk 0:03:01.9]} 1... Nf6 {[%clk 0:02:58]} 2. Nf3 {[%clk 0:03:03.5]}
2... g6 {[%clk 0:02:58.9]} 3. Nc3 {[%clk 0:03:03.2]} 3... d5 {[%clk 0:02:57.3]}
4. Bf4 {[%clk 0:03:04.3]} 4... Bg7 {[%clk 0:02:57.7]} 5. Nb5 {[%clk 0:03:05.3]}
5... Na6 {[%clk 0:02:56.7]} 6. e3 {[%clk 0:03:06.4]} 6... O-O {[%clk 0:02:53.2]}
7. h3 {[%clk 0:03:04.9]} 7... c5 {[%clk 0:02:41.7]} 8. c3 {[%clk 0:03:03.6]}
8... Bd7 {[%clk 0:02:38.4]} 9. a4 {[%clk 0:03:04.1]} 9... Bf5 {[%clk 0:02:15.1]}
10. Be2 {[%clk 0:03:03.3]} 10... Be4 {[%clk 0:02:03.5]} 11. O-O {[%clk
0:03:03.4]} 11... Bxf3 {[%clk 0:01:59.6]} 12. Bxf3 {[%clk 0:03:03.9]} 12... e6
{[%clk 0:02:00.1]} 13. Qb3 {[%clk 0:03:03]} 13... c4 {[%clk 0:01:48.2]} 14. Qa2
{[%clk 0:02:58.5]} 14... Qd7 {[%clk 0:01:46.4]} 15. Rfc1 {[%clk 0:02:58]} 15...
Rfc8 {[%clk 0:01:42.9]} 16. Rab1 {[%clk 0:02:58.4]} 16... Bf8 {[%clk 0:01:37.1]}
17. b4 {[%clk 0:02:54.4]} 17... Nb8 {[%clk 0:01:21.9]} 18. Be5 {[%clk 0:02:53]}
18... Be7 {[%clk 0:01:15.9]} 19. Qc2 {[%clk 0:02:53.1]} 19... Nc6 {[%clk
0:01:12]} 20. Bxf6 {[%clk 0:02:52.7]} 20... Bxf6 {[%clk 0:01:13.9]} 21. e4
{[%clk 0:02:53.2]} 21... a5 {[%clk 0:01:12]} 22. bxa5 {[%clk 0:02:53.1]} 22...
Nxa5 {[%clk 0:01:11.5]} 23. exd5 {[%clk 0:02:52.4]} 23... exd5 {[%clk
0:01:13.4]} 24. Re1 {[%clk 0:02:52.1]} 24... Re8 {[%clk 0:01:09.9]} 25. Rxe8+
{[%clk 0:02:44.9]} 25... Rxe8 {[%clk 0:01:11.8]} 26. Bxd5 {[%clk 0:02:43.8]}
26... Qxd5 {[%clk 0:01:07.1]} 27. Nc7 {[%clk 0:02:44.9]} 27... Qe4 {[%clk
0:01:04.4]} 28. Qxe4 {[%clk 0:02:43.9]} 28... Rxe4 {[%clk 0:01:04.9]} 29. Rb5
{[%clk 0:02:45.4]} 29... Bd8 {[%clk 0:00:57.5]} 30. Nd5 {[%clk 0:02:45.8]} 30...
Kg7 {[%clk 0:00:51.9]} 31. Kf1 {[%clk 0:02:46.1]} 31... Re6 {[%clk 0:00:41.2]}
32. g3 {[%clk 0:02:46.1]} 32... b6 {[%clk 0:00:38.5]} 33. Kg2 {[%clk 0:02:43.2]}
33... Nb3 {[%clk 0:00:37.8]} 34. Ne3 {[%clk 0:02:42.7]} 34... Rc6 {[%clk
0:00:33.7]} 35. Rd5 {[%clk 0:02:41.6]} 35... Bf6 {[%clk 0:00:30.3]} 36. Rd7
{[%clk 0:02:40.2]} 36... Nd2 {[%clk 0:00:21.7]} 37. f4 {[%clk 0:02:35.3]} 37...
Ne4 {[%clk 0:00:19.3]} 38. Nd5 {[%clk 0:02:35.2]} 38... Re6 {[%clk 0:00:15]} 39.
g4 {[%clk 0:02:34]} 39... Nd2 {[%clk 0:00:13.5]} 40. g5 {[%clk 0:02:33.5]} 40...
Bxd4 {[%clk 0:00:13.9]} 41. cxd4 {[%clk 0:02:33.3]} 41... Re2+ {[%clk
0:00:15.2]} 42. Kg3 {[%clk 0:02:33.9]} 42... c3 {[%clk 0:00:16.6]} 43. Rc7
{[%clk 0:02:32.4]} 43... c2 {[%clk 0:00:17.7]} 44. Nb4 {[%clk 0:02:29.9]} 44...
Re3+ {[%clk 0:00:14.9]} 45. Kf2 {[%clk 0:02:27.1]} 45... Rxh3 {[%clk 0:00:15.3]}
46. Rxc2 {[%clk 0:02:25.9]} 46... Ne4+ {[%clk 0:00:16.6]} 47. Ke2 {[%clk
0:02:26.1]} 47... Nc3+ {[%clk 0:00:15.9]} 48. Kd2 {[%clk 0:02:21.9]} 48... Ne4+
{[%clk 0:00:16.9]} 49. Ke2 {[%clk 0:02:21.4]} 49... h5 {[%clk 0:00:17]} 50.
gxh6+ {[%clk 0:02:22.1]} 50... Kxh6 {[%clk 0:00:18.9]} 51. Rc7 {[%clk
0:02:22.7]} 51... f5 {[%clk 0:00:19.1]} 52. Nd5 {[%clk 0:02:22.2]} 52... Nc3+
{[%clk 0:00:19.4]} 53. Nxc3 {[%clk 0:02:22.8]} 1-0